Workbook

Sheet Cover
A3: Navigator
C5: =Client_Name -> SumProduct Pty Ltd
C6: =Model_Name -> SP Interest Rates Example Model.xlsm
C14: Primary Developer: Liam Bastick
C16: General Cover Notes:
C17: Simple template to agree layouts, formats and styles.
C21: Any queries, please e-mail: | G21: liam.bastick@sumproduct.com
C22: Website: | G22: www.sumproduct.com

Sheet Navigator
A1: Navigator
A2: =Model_Name -> SP Interest Rates Example Model.xlsm
A3: Navigator
E4: Error Checks: | G4: =Overall_Error_Check -> 0
B7: 1 | C7: Table of Contents
F9: Cover
F10: Style Guide
F11: Interest Assumptions
F12: Correct Interest Rate
F13: Compounding Monthly Rate
F14: Simple Monthly Rate
F15: Model Parameters
F16: Lookup Data
F17: Timing
F18: Error Checks

Sheet Style Guide
A1: =IF(ISERROR(RIGHT(CELL("filename",A1),LEN(CELL("filename",A1))-FIND("]",CELL("filename",A1)))), "", RIGHT(CELL("filename",A1),LEN(CELL("filename",A1))-FIND("]",CELL("filename",A1)))) -> Style Guide
A2: =Model_Name -> SP Interest Rates Example Model.xlsm
A3: Navigator
E4: Error Checks: | I4: =Overall_Error_Check -> 0
B6: =MAX($B$5:$B5)+1 -> 1 | C6: Formatting of Headers / Dividers
C8: Description | I8: Display | K8: Style Name
C10: Sheet Title | I10: =C10 -> Sheet Title | K10: Sheet Title
C11: Model Name | I11: =C11 -> Model Name | K11: Model Name
C13: Header 1 | I13: =C13 -> Header 1 | K13: Header 1
C14: Header 2 | I14: =C14 -> Header 2 | K14: Header 2
C15: Header 3 | I15: =C15 -> Header 3 | K15: Header 3
C16: Header 4 | I16: =C16 -> Header 4 | K16: Header 4
C18: Notes | I18: =C18 -> Notes | K18: Notes
C20: Table Heading | I20: =C20 -> Table Heading | K20: Table Heading
B23: =MAX($B$5:$B22)+1 -> 2 | C23: Individual Cell Styles
C25: Description | I25: Display | K25: Style Name
C27: Assumption | I27: Assumption | K27: =C27 -> Assumption
C29: Constraint | I29: =C29 -> Constraint | K29: =C29 -> Constraint
C31: Empty | K31: =C31 -> Empty
C33: Error Check | I33: 0 | K33: =C33 -> Error Check
C35: Hyperlink | I35: Hyperlink | K35: =C35 -> Hyperlink
C37: Internal Reference | I37: ='Error Checks'!E12 -> Correct Rate Check | K37: =C37 -> Internal Reference
C39: Line Calculation | I39: 77 | K39: Line Calc
C41: Line Total | I41: =I39 -> 77 | K41: =C41 -> Line Total
C43: Parameter | I43: 365 | K43: =C43 -> Parameter
C45: Range Name Description | I45: Not_Named | K45: =C45 -> Range Name Description
C47: Row Reference | I47: =ROW(C47) -> 47 | K47: Row Ref
C49: Row Summary | I49: =I41 -> 77 | K49: =C49 -> Row Summary
C51: Units | I51: A$ | K51: =C51 -> Units
C53: WIP | K53: =C53 -> WIP
B56: =MAX($B$5:$B55)+1 -> 3 | C56: Numerical Styles
C58: Description | I58: Display | K58: Style Name
C60: Comma | I60: 123456.789 | K60: =C60 -> Comma
C62: Comma [0] | I62: -123456.789 | K62: Comma [0]
C64: Currency | I64: 123456.789 | K64: Currency
C66: Currency [0] | I66: 123456.789 | K66: Currency [0]
C68: Date | I68: =TODAY() -> 2016-12-03 | K68: =C68 -> Date
C70: Date Heading | I70: =TODAY() -> 2016-12-03 | K70: =C70 -> Date Heading
C72: Numbers 0 | I72: -123456.789 | K72: =C72 -> Numbers 0
C74: Percent | I74: 0.5 | K74: =C74 -> Percent

Sheet Interest Assumptions
A1: =IF(ISERROR(RIGHT(CELL("filename",A1),LEN(CELL("filename",A1))-FIND("]",CELL("filename",A1)))), "", RIGHT(CELL("filename",A1),LEN(CELL("filename",A1))-FIND("]",CELL("filename",A1)))) -> Interest Assumptions
A2: =Model_Name -> SP Interest Rates Example Model.xlsm
A3: Navigator
E4: Error Checks: | I4: =Overall_Error_Check -> 0
B6: =MAX($B$5:$B5)+1 -> 1 | C6: =A1 -> Interest Assumptions
C8: Key Inputs
F10: Payment Frequency | G10: # Months | I10: 1
F12: Effective Interest Rate | G12: % p.a. | I12: 0.12
F14: Interest Per Month | G14: % p.m. | I14: =(1+(Effective_Annual_Interest_Rate*Payment_Frequency/Months_in_Year))^(1/Payment_Frequency)-1 -> 0.01 | K14: =_xlfn.FORMULATEXT(I14) -> =(1+(Effective_Annual_Interest_Rate*Payment_Frequency/Months_in_Year))^(1/Payment_Frequency)-1
C17: Summary
D19: For Comparison Only
F21: Correct Monthly Rate | G21: % p.m. | I21: =Correct_Monthly_Interest_Rate -> 0.01
F23: Compounding Monthly Rate | G23: % p.m. | I23: =(1+Effective_Annual_Interest_Rate)^(1/Months_in_Year)-1 -> 0.009488792935
F25: Simple Monthly Rate | G25: % p.m. | I25: =Effective_Annual_Interest_Rate/Months_in_Year -> 0.01

Sheet Correct Interest Rate
A1: =IF(ISERROR(RIGHT(CELL("filename",A1),LEN(CELL("filename",A1))-FIND("]",CELL("filename",A1)))), "", RIGHT(CELL("filename",A1),LEN(CELL("filename",A1))-FIND("]",CELL("filename",A1)))) -> Correct Interest Rate
A2: =Model_Name -> SP Interest Rates Example Model.xlsm
A3: Navigator
E4: Error Checks: | I4: =Overall_Error_Check -> 0
B6: =MAX($B$5:$B5)+1 -> 1 | C6: =A1 -> Correct Interest Rate
C8: Demonstration
D10: ='Interest Assumptions'!F12 -> Effective Interest Rate | G10: % p.a. | I10: =Effective_Annual_Interest_Rate -> 0.12
D12: Rate Used | G12: % p.m. | I12: =Correct_Monthly_Interest_Rate -> 0.01
D14: Opening Balance Assumed | G14: $ | I14: 100
J17: =N(I17)+1 -> 1 | K17: =N(J17)+1 -> 2 | L17: 3 | M17: 4 | N17: 5 | O17: 6 | P17: 7 | Q17: 8 | R17: 9 | S17: 10 | T17: 11 | U17: 12
D18: Opening Balance | G18: $ | J18: =IF(J$17=1,$I$14,I21) -> 100 | K18: =IF(K$17=1,$I$14,J21) -> 100 | L18: 100 | M18: 100 | N18: 100 | O18: 100 | P18: 100 | Q18: 100 | R18: 100 | S18: 100 | T18: 100 | U18: 100
D19: Interest Accrued | G19: $ | J19: =J18*$I$12 -> 1 | K19: =K18*$I$12 -> 1 | L19: 1 | M19: 1 | N19: 1 | O19: 1 | P19: 1 | Q19: 1 | R19: 1 | S19: 1 | T19: 1 | U19: 1
D20: Interest Paid | G20: $ | J20: =-IF(MOD(J$17,Payment_Frequency),,SUM($I20:I20)+SUM($I19:J19)) -> -1 | K20: =-IF(MOD(K$17,Payment_Frequency),,SUM($I20:J20)+SUM($I19:K19)) -> -1 | L20: =-IF(MOD(L$17,Payment_Frequency),,SUM($I20:K20)+SUM($I19:L19)) -> -1 | M20: =-IF(MOD(M$17,Payment_Frequency),,SUM($I20:L20)+SUM($I19:M19)) -> -1 | N20: =-IF(MOD(N$17,Payment_Frequency),,SUM($I20:M20)+SUM($I19:N19)) -> -1 | O20: =-IF(MOD(O$17,Payment_Frequency),,SUM($I20:N20)+SUM($I19:O19)) -> -1 | P20: =-IF(MOD(P$17,Payment_Frequency),,SUM($I20:O20)+SUM($I19:P19)) -> -1 | Q20: =-IF(MOD(Q$17,Payment_Frequency),,SUM($I20:P20)+SUM($I19:Q19)) -> -1 | R20: =-IF(MOD(R$17,Payment_Frequency),,SUM($I20:Q20)+SUM($I19:R19)) -> -1 | S20: =-IF(MOD(S$17,Payment_Frequency),,SUM($I20:R20)+SUM($I19:S19)) -> -1 | T20: =-IF(MOD(T$17,Payment_Frequency),,SUM($I20:S20)+SUM($I19:T19)) -> -1 | U20: =-IF(MOD(U$17,Payment_Frequency),,SUM($I20:T20)+SUM($I19:U19)) -> -1
D21: Closing Balance | G21: $ | J21: =SUM(J18:J20) -> 100 | K21: =SUM(K18:K20) -> 100 | L21: 100 | M21: 100 | N21: 100 | O21: 100 | P21: 100 | Q21: 100 | R21: 100 | S21: 100 | T21: 100 | U21: 100
D24: Total Interest For Year | G24: $ | I24: =SUM(J19:U19) -> 12
D25: =D14 -> Opening Balance Assumed | G25: $ | I25: =I14 -> 100
D27: =D10 -> Effective Interest Rate | G27: % p.a. | I27: =IF(I25,I24/I25,) -> 0.12 | J27: =(ROUND(I27-I10,Rounding_Accuracy))*1 -> 0

Sheet Compounding Monthly Rate
A1: =IF(ISERROR(RIGHT(CELL("filename",A1),LEN(CELL("filename",A1))-FIND("]",CELL("filename",A1)))), "", RIGHT(CELL("filename",A1),LEN(CELL("filename",A1))-FIND("]",CELL("filename",A1)))) -> Compounding Monthly Rate
A2: =Model_Name -> SP Interest Rates Example Model.xlsm
A3: Navigator
E4: Error Checks: | I4: =Overall_Error_Check -> 0
B6: =MAX($B$5:$B5)+1 -> 1 | C6: =A1 -> Compounding Monthly Rate
C8: Demonstration
D10: ='Interest Assumptions'!F12 -> Effective Interest Rate | G10: % p.a. | I10: =Effective_Annual_Interest_Rate -> 0.12
D12: Rate Used | G12: % p.m. | I12: =Compounding_Monthly_Rate -> 0.009488792935
D14: Opening Balance Assumed | G14: $ | I14: 100
J17: =N(I17)+1 -> 1 | K17: =N(J17)+1 -> 2 | L17: 3 | M17: 4 | N17: 5 | O17: 6 | P17: 7 | Q17: 8 | R17: 9 | S17: 10 | T17: 11 | U17: 12
D18: Opening Balance | G18: $ | J18: =IF(J$17=1,$I$14,I21) -> 100 | K18: =IF(K$17=1,$I$14,J21) -> 100 | L18: 100 | M18: 100 | N18: 100 | O18: 100 | P18: 100 | Q18: 100 | R18: 100 | S18: 100 | T18: 100 | U18: 100
D19: Interest Accrued | G19: $ | J19: =J18*$I$12 -> 0.9488792935 | K19: =K18*$I$12 -> 0.9488792935 | L19: 0.9488792935 | M19: 0.9488792935 | N19: 0.9488792935 | O19: 0.9488792935 | P19: 0.9488792935 | Q19: 0.9488792935 | R19: 0.9488792935 | S19: 0.9488792935 | T19: 0.9488792935 | U19: 0.9488792935
D20: Interest Paid | G20: $ | J20: =-IF(MOD(J$17,Payment_Frequency),,SUM($I20:I20)+SUM($I19:J19)) -> -0.9488792935 | K20: =-IF(MOD(K$17,Payment_Frequency),,SUM($I20:J20)+SUM($I19:K19)) -> -0.9488792935 | L20: =-IF(MOD(L$17,Payment_Frequency),,SUM($I20:K20)+SUM($I19:L19)) -> -0.9488792935 | M20: =-IF(MOD(M$17,Payment_Frequency),,SUM($I20:L20)+SUM($I19:M19)) -> -0.9488792935 | N20: =-IF(MOD(N$17,Payment_Frequency),,SUM($I20:M20)+SUM($I19:N19)) -> -0.9488792935 | O20: =-IF(MOD(O$17,Payment_Frequency),,SUM($I20:N20)+SUM($I19:O19)) -> -0.9488792935 | P20: =-IF(MOD(P$17,Payment_Frequency),,SUM($I20:O20)+SUM($I19:P19)) -> -0.9488792935 | Q20: =-IF(MOD(Q$17,Payment_Frequency),,SUM($I20:P20)+SUM($I19:Q19)) -> -0.9488792935 | R20: =-IF(MOD(R$17,Payment_Frequency),,SUM($I20:Q20)+SUM($I19:R19)) -> -0.9488792935 | S20: =-IF(MOD(S$17,Payment_Frequency),,SUM($I20:R20)+SUM($I19:S19)) -> -0.9488792935 | T20: =-IF(MOD(T$17,Payment_Frequency),,SUM($I20:S20)+SUM($I19:T19)) -> -0.9488792935 | U20: =-IF(MOD(U$17,Payment_Frequency),,SUM($I20:T20)+SUM($I19:U19)) -> -0.9488792935
D21: Closing Balance | G21: $ | J21: =SUM(J18:J20) -> 100 | K21: =SUM(K18:K20) -> 100 | L21: 100 | M21: 100 | N21: 100 | O21: 100 | P21: 100 | Q21: 100 | R21: 100 | S21: 100 | T21: 100 | U21: 100
D24: Total Interest For Year | G24: $ | I24: =SUM(J19:U19) -> 11.38655152
D25: =D14 -> Opening Balance Assumed | G25: $ | I25: =I14 -> 100
D27: =D10 -> Effective Interest Rate | G27: % p.a. | I27: =IF(I25,I24/I25,) -> 0.1138655152 | J27: =(ROUND(I27-I10,Rounding_Accuracy))*1 -> -0.00613

Sheet Simple Monthly Rate
A1: =IF(ISERROR(RIGHT(CELL("filename",A1),LEN(CELL("filename",A1))-FIND("]",CELL("filename",A1)))), "", RIGHT(CELL("filename",A1),LEN(CELL("filename",A1))-FIND("]",CELL("filename",A1)))) -> Simple Monthly Rate
A2: =Model_Name -> SP Interest Rates Example Model.xlsm
A3: Navigator
E4: Error Checks: | I4: =Overall_Error_Check -> 0
B6: =MAX($B$5:$B5)+1 -> 1 | C6: =A1 -> Simple Monthly Rate
C8: Demonstration
D10: ='Interest Assumptions'!F12 -> Effective Interest Rate | G10: % p.a. | I10: =Effective_Annual_Interest_Rate -> 0.12
D12: Rate Used | G12: % p.m. | I12: =Simple_Monthly_Rate -> 0.01
D14: Opening Balance Assumed | G14: $ | I14: 100
J17: =N(I17)+1 -> 1 | K17: =N(J17)+1 -> 2 | L17: 3 | M17: 4 | N17: 5 | O17: 6 | P17: 7 | Q17: 8 | R17: 9 | S17: 10 | T17: 11 | U17: 12
D18: Opening Balance | G18: $ | J18: =IF(J$17=1,$I$14,I21) -> 100 | K18: =IF(K$17=1,$I$14,J21) -> 100 | L18: 100 | M18: 100 | N18: 100 | O18: 100 | P18: 100 | Q18: 100 | R18: 100 | S18: 100 | T18: 100 | U18: 100
D19: Interest Accrued | G19: $ | J19: =J18*$I$12 -> 1 | K19: =K18*$I$12 -> 1 | L19: 1 | M19: 1 | N19: 1 | O19: 1 | P19: 1 | Q19: 1 | R19: 1 | S19: 1 | T19: 1 | U19: 1
D20: Interest Paid | G20: $ | J20: =-IF(MOD(J$17,Payment_Frequency),,SUM($I20:I20)+SUM($I19:J19)) -> -1 | K20: =-IF(MOD(K$17,Payment_Frequency),,SUM($I20:J20)+SUM($I19:K19)) -> -1 | L20: =-IF(MOD(L$17,Payment_Frequency),,SUM($I20:K20)+SUM($I19:L19)) -> -1 | M20: =-IF(MOD(M$17,Payment_Frequency),,SUM($I20:L20)+SUM($I19:M19)) -> -1 | N20: =-IF(MOD(N$17,Payment_Frequency),,SUM($I20:M20)+SUM($I19:N19)) -> -1 | O20: =-IF(MOD(O$17,Payment_Frequency),,SUM($I20:N20)+SUM($I19:O19)) -> -1 | P20: =-IF(MOD(P$17,Payment_Frequency),,SUM($I20:O20)+SUM($I19:P19)) -> -1 | Q20: =-IF(MOD(Q$17,Payment_Frequency),,SUM($I20:P20)+SUM($I19:Q19)) -> -1 | R20: =-IF(MOD(R$17,Payment_Frequency),,SUM($I20:Q20)+SUM($I19:R19)) -> -1 | S20: =-IF(MOD(S$17,Payment_Frequency),,SUM($I20:R20)+SUM($I19:S19)) -> -1 | T20: =-IF(MOD(T$17,Payment_Frequency),,SUM($I20:S20)+SUM($I19:T19)) -> -1 | U20: =-IF(MOD(U$17,Payment_Frequency),,SUM($I20:T20)+SUM($I19:U19)) -> -1
D21: Closing Balance | G21: $ | J21: =SUM(J18:J20) -> 100 | K21: =SUM(K18:K20) -> 100 | L21: 100 | M21: 100 | N21: 100 | O21: 100 | P21: 100 | Q21: 100 | R21: 100 | S21: 100 | T21: 100 | U21: 100
D24: Total Interest For Year | G24: $ | I24: =SUM(J19:U19) -> 12
D25: =D14 -> Opening Balance Assumed | G25: $ | I25: =I14 -> 100
D27: =D10 -> Effective Interest Rate | G27: % p.a. | I27: =IF(I25,I24/I25,) -> 0.12 | J27: =(ROUND(I27-I10,Rounding_Accuracy))*1 -> 0

Sheet Model Parameters
A1: =IF(ISERROR(RIGHT(CELL("filename",A1),LEN(CELL("filename",A1))-FIND("]",CELL("filename",A1)))), "", RIGHT(CELL("filename",A1),LEN(CELL("filename",A1))-FIND("]",CELL("filename",A1)))) -> Model Parameters
A2: =Model_Name -> SP Interest Rates Example Model.xlsm
A3: Navigator
E4: Error Checks: | I4: =Overall_Error_Check -> 0
B6: =MAX($B$5:$B5)+1 -> 1 | C6: General
C8: Key Inputs
E10: General
E11: Model Name | G11: =IF(ISERROR(OR(FIND("[",CELL("filename",A1)),FIND("]",CELL("filename",A1)))),"",MID(CELL("filename",A1),FIND("[",CELL("filename",A1))+1,FIND("]",CELL("filename",A1))-FIND("[",CELL("filename",A1))-1)) -> SP Interest Rates Example Model.xlsm
E12: Client Name | G12: SumProduct Pty Ltd
B15: =MAX($B$5:$B14)+1 -> 2 | C15: General Range Names
C17: Technical Assumptions
E19: Days in Year | G19: 365
E20: Months in Month | G20: 1
E21: Months in Quarter | G21: 3
E22: Months in Half Yr | G22: 6
E23: Months in Year | G23: 12
E24: Quarters in Year | G24: 4
E26: Rounding Accuracy | G26: 5
E28: Very Large Number | G28: 1e+99
E29: Very Small Number | G29: 1e-08
E31: Thousand | G31: 1000

Sheet Lookup Data
A1: =IF(ISERROR(RIGHT(CELL("filename",A1),LEN(CELL("filename",A1))-FIND("]",CELL("filename",A1)))), "", RIGHT(CELL("filename",A1),LEN(CELL("filename",A1))-FIND("]",CELL("filename",A1)))) -> Lookup Data
A2: =Model_Name -> SP Interest Rates Example Model.xlsm
A3: Navigator
E4: Error Checks: | I4: =Overall_Error_Check -> 0
B6: =MAX($B$5:$B5)+1 -> 1 | C6: Payment Frequency
C8: Lookup Data
F10: =C6 -> Payment Frequency
F11: 1 | H11: LU_Payment_Frequency
F12: 2
F13: 3
F14: 4
F15: 6
F16: 12

Sheet Timing
A1: =IF(ISERROR(RIGHT(CELL("filename",A1),LEN(CELL("filename",A1))-FIND("]",CELL("filename",A1)))), "", RIGHT(CELL("filename",A1),LEN(CELL("filename",A1))-FIND("]",CELL("filename",A1)))) -> Timing
A2: =Model_Name -> SP Interest Rates Example Model.xlsm
A3: Navigator
B4: Error Checks: | F4: =Overall_Error_Check -> 0
J5: =J$7 -> 2016-12-31 | K5: =K$7 -> 2017-03-31 | L5: =L$7 -> 2017-06-30 | M5: =M$7 -> 2017-09-30 | N5: =N$7 -> 2017-12-31
C6: Start Date | J6: =IF(J$9=1,Model_Start_Date,I$7+1) -> 2016-12-03 | K6: =IF(K$9=1,Model_Start_Date,J$7+1) -> 2017-01-01 | L6: =IF(L$9=1,Model_Start_Date,K$7+1) -> 2017-04-01 | M6: =IF(M$9=1,Model_Start_Date,L$7+1) -> 2017-07-01 | N6: =IF(N$9=1,Model_Start_Date,M$7+1) -> 2017-10-01
C7: End Date | J7: =EOMONTH(J$6,MOD(Periodicity+Reporting_Month_Factor-MONTH(J$6),Periodicity)) -> 2016-12-31 | K7: =EOMONTH(K$6,MOD(Periodicity+Reporting_Month_Factor-MONTH(K$6),Periodicity)) -> 2017-03-31 | L7: =EOMONTH(L$6,MOD(Periodicity+Reporting_Month_Factor-MONTH(L$6),Periodicity)) -> 2017-06-30 | M7: =EOMONTH(M$6,MOD(Periodicity+Reporting_Month_Factor-MONTH(M$6),Periodicity)) -> 2017-09-30 | N7: =EOMONTH(N$6,MOD(Periodicity+Reporting_Month_Factor-MONTH(N$6),Periodicity)) -> 2017-12-31
C8: Number of Days | J8: =J7-J6+1 -> 29 | K8: =K7-K6+1 -> 90 | L8: 91 | M8: 92 | N8: 92
C9: Counter | J9: =N(I$9)+1 -> 1 | K9: =N(J$9)+1 -> 2 | L9: 3 | M9: 4 | N9: 5
B11: =MAX($B$10:$B10)+1 -> 1 | C11: Timing Assumptions
C13: Data (do not change once modelling has commenced)
D15: Model Start Date | H15: =TODAY() -> 2016-12-03
D17: Number of Months in a Full Period | H17: 3
D19: Example Reporting Month | H19: 12 | I19: ="e.g. "&TEXT(DATE(YEAR(Model_Start_Date)+IF(Example_Reporting_Month<MONTH(Model_Start_Date),1,0),Example_Reporting_Month+1,1)-1,"dd-Mmm-yy") -> e.g. 31-Dec-16
D21: Reporting Month Factor | H21: =MOD(Example_Reporting_Month-1,Periodicity)+1 -> 3
D23: Months per Year | H23: 12

Sheet Error Checks
A1: =IF(ISERROR(RIGHT(CELL("filename",A1),LEN(CELL("filename",A1))-FIND("]",CELL("filename",A1)))), "", RIGHT(CELL("filename",A1),LEN(CELL("filename",A1))-FIND("]",CELL("filename",A1)))) -> Error Checks
A2: =Model_Name -> SP Interest Rates Example Model.xlsm
A3: Navigator
B4: Error Checks: | F4: =Overall_Error_Check -> 0
B6: =MAX($B$5:$B5)+1 -> 1 | C6: Error Checks
C8: Summary of Errors
D10: Assumptions
E12: Correct Rate Check | I12: =HL_Correct_Rate_Check -> 0
E17: =C8 -> Summary of Errors | I17: =MIN(1,SUM(I11:I15)) -> 0
